bitfinex-derivatives/quotes_BTCF0:USTF0_20240910
["timestamp","ask_amount","ask_price","bid_price","bid_amount"]
[1725980874995,0.008,56879.0,56875.0,0.087906]
[1725980875298,0.008,56879.0,56876.0,0.001]
[1725980875598,0.087904,56877.0,56876.0,0.001]
[1725980876394,0.087908,56875.0,56873.0,0.001]
[1725980876592,0.25,56878.0,56874.0,0.001]
[1725980876990,0.087907,56875.0,56874.0,0.001]
[1725980877392,0.087907,56875.0,56868.0,0.01048048]
[1725980877393,0.087916,56869.0,56868.0,0.01048048]
[1725980877591,0.337916,56869.0,56859.0,0.087931]
[1725980877793,0.0976,56874.0,56857.0,0.25]
[1725980878093,0.08791,56874.0,56861.0,0.25]
[1725980878392,0.087907,56876.0,56870.0,0.25]
[1725980878594,0.087907,56876.0,56866.0,0.25]
[1725980878794,0.087907,56876.0,56871.0,0.087912]
[1725980879090,0.023,56877.0,56873.0,0.08791]
[1725980879297,0.098905,56877.0,56865.0,0.25]
[1725980879492,0.001,56869.0,56868.0,0.087918]
[1725980879694,0.011,56877.0,56866.0,0.52756]
[1725980879896,0.009,56875.0,56874.0,0.001]
[1725980880092,0.096907,56875.0,56874.0,0.001]
[1725980880596,0.096907,56875.0,56874.0,0.01144688]
[1725980880893,0.087909,56874.0,56871.0,0.001]
[1725980881195,0.259,56876.0,56871.0,0.001]
[1725980881196,0.087912,56872.0,56871.0,0.001]
[1725980881394,0.337912,56872.0,56871.0,0.001]
[1725980881589,0.259,56876.0,56871.0,0.001]
[1725980881789,0.009,56876.0,56871.0,0.001]
[1725980881993,0.009,56876.0,56874.0,0.087908]
[1725980882189,0.009,56876.0,56875.0,0.087907]
[1725980882901,0.009,56876.0,56872.0,0.087912]
[1725980883094,0.087906,56876.0,56872.0,0.087912]
[1725980883397,0.087906,56876.0,56868.0,0.001]
[1725980883398,0.175832,56869.0,56868.0,0.001]
[1725980883600,0.087933,56859.0,56855.0,0.01046616]
[1725980883799,0.087912,56872.0,56855.0,0.01046616]
[1725980883800,0.25,56860.0,56855.0,0.01046616]
[1725980884105,0.25,56860.0,56850.0,0.087945]
[1725980884106,0.087937,56856.0,56850.0,0.087945]
[1725980884401,0.337931,56860.0,56848.0,0.88]
[1725980884699,0.087935,56857.0,56848.0,0.88]
[1725980884886,0.087932,56859.0,56848.0,0.88]
[1725980885087,0.087939,56855.0,56849.0,0.087946]
[1725980885292,0.087939,56855.0,56850.0,0.087945]
[1725980885600,0.087939,56855.0,56850.0,0.967945]
[1725980885896,0.087944,56852.0,56850.0,0.88]
[1725980886105,0.251,56860.0,56850.0,0.88]
[1725980886106,0.087936,56857.0,56850.0,0.88]
[1725980886600,0.251,56860.0,56850.0,0.88]
[1725980886802,0.001,56856.0,56850.0,0.886]
[1725980887001,0.087939,56855.0,56850.0,0.886]
[1725980887301,0.08794,56854.0,56850.0,0.89637438]
[1725980887697,0.08794,56854.0,56850.0,0.98431938]
[1725980888197,0.001,56856.0,56850.0,0.89537438]
[1725980888198,0.25,56856.0,56850.0,0.89537438]
[1725980888399,0.087943,56852.0,56850.0,0.90237438]
[1725980888600,0.001,56855.0,56850.0,0.90237438]
[1725980888800,0.001,56855.0,56854.0,0.08794]
[1725980889701,0.087914,56871.0,56855.0,0.087937]
[1725980889896,0.087915,56870.0,56866.0,0.08792]
[1725980890803,0.3218,56878.0,56862.0,0.39004343]
[1725980891108,0.08791,56874.0,56864.0,0.05211643]
[1725980891399,0.3218,56878.0,56864.0,0.05211643]
[1725980891400,0.087918,56868.0,56867.0,0.05211643]
[1725980891601,0.25,56871.0,56866.0,0.07048858]
[1725980891811,0.097915,56870.0,56869.0,0.05215573]
[1725980892306,0.097915,56870.0,56868.0,0.05215573]
[1725980892509,0.097915,56870.0,56869.0,0.05215573]
[1725980892893,0.087916,56869.0,56867.0,0.05215573]
[1725980893098,0.087916,56869.0,56866.0,0.001]
[1725980893099,0.25,56868.0,56866.0,0.001]
[1725980893305,1.47356,56868.0,56862.0,0.001]
[1725980893496,0.25,56863.0,56854.0,0.05215573]
[1725980893702,0.087941,56853.0,56852.0,0.05215573]
[1725980893900,0.087943,56852.0,56851.0,0.05215573]
[1725980894205,0.175886,56852.0,56851.0,0.05215573]
[1725980894502,0.175886,56852.0,56845.0,0.05221265]
[1725980894503,0.087952,56846.0,56845.0,0.05221265]
[1725980894702,0.087952,56846.0,56840.0,0.08796]
[1725980894703,0.087954,56845.0,56844.0,0.05218914]
[1725980894897,0.087955,56844.0,56843.0,0.05218914]
[1725980895093,0.337955,56844.0,56840.0,0.15744858]
[1725980895296,0.337955,56844.0,56843.0,0.05219642]
[1725980895503,0.337955,56844.0,56842.0,0.05219642]
[1725980896204,0.25,56844.0,56843.0,0.05219642]
[1725980896404,0.25,56844.0,56842.0,0.087958]
[1725980896405,0.25,56848.0,56845.0,0.087953]
[1725980896598,0.01143177,56852.0,56845.0,0.087953]
[1725980896902,0.25,56853.0,56844.0,0.05219642]
[1725980897105,0.001,56845.0,56844.0,0.14415042]
[1725980897309,0.001,56845.0,56844.0,0.091954]
[1725980897609,0.001,56852.0,56851.0,0.087944]
[1725980898093,0.087929,56862.0,56851.0,0.087944]
[1725980898094,0.087929,56862.0,56851.0,0.88]
[1725980898296,0.087929,56862.0,56852.0,0.05213559]
[1725980898504,0.25,56867.0,56852.0,0.05213559]
[1725980898811,0.25,56871.0,56856.0,0.05213559]
[1725980898999,0.25,56871.0,56855.0,0.05213559]
[1725980899311,0.087923,56865.0,56854.0,0.05213559]
[1725980899513,0.25,56862.0,56854.0,0.087938]
[1725980899699,0.25,56862.0,56851.0,0.89653689]
[1725980899900,0.25,56871.0,56859.0,0.087931]
[1725980900404,0.10735441,56872.0,56855.0,0.087937]
[1725980900405,0.337922,56866.0,56855.0,0.087937]
[1725980900605,0.337922,56866.0,56857.0,0.087934]
[1725980900813,0.05905441,56872.0,56851.0,1.03661648]
[1725980901103,0.05905441,56872.0,56861.0,0.087929]
[1725980901104,0.001,56862.0,56861.0,0.087929]
[1725980901498,0.26048435,56876.0,56859.0,0.30213559]
[1725980902008,0.087915,56870.0,56859.0,0.05213559]
[1725980902211,0.25,56872.0,56866.0,0.087921]
[1725980902903,0.087915,56871.0,56859.0,0.05213559]
[1725980903199,0.25,56872.0,56859.0,0.05213559]
[1725980903400,0.087907,56875.0,56862.0,0.25]
[1725980903804,0.087901,56879.0,56871.0,0.087912]
[1725980904113,0.62914862,56881.0,56862.0,0.30213559]
[1725980904114,0.25232,56881.0,56874.0,0.087908]
[1725980904297,0.087899,56881.0,56866.0,0.25]
[1725980904603,0.01058543,56884.0,56867.0,0.09763559]
[1725980904604,0.001,56876.0,56867.0,0.09763559]
[1725980904909,0.006,56875.0,56872.0,0.087911]
[1725980905403,0.087901,56879.0,56874.0,0.001]
[1725980906105,0.024,56881.0,56874.0,0.001]
[1725980907002,0.337907,56875.0,56874.0,0.001]
[1725980907709,0.351907,56875.0,56872.0,0.0113533]
[1725980908005,0.278,56875.0,56872.0,0.002]
[1725980908208,0.028,56875.0,56872.0,0.002]
[1725980908506,0.087924,56864.0,56863.0,0.01029869]
[1725980908717,0.087929,56861.0,56856.0,0.087936]
[1725980908918,0.25,56859.0,56851.0,0.05213559]
[1725980909209,0.087931,56860.0,56850.0,0.05213559]
[1725980909403,0.25,56863.0,56858.0,0.087933]
[1725980909603,0.25,56863.0,56860.0,0.087929]
[1725980909911,0.0456,56869.0,56854.0,0.25]
[1725980910102,0.08792,56867.0,56860.0,0.087929]
[1725980910306,0.0456,56869.0,56854.0,0.25]
[1725980910307,0.2956,56869.0,56854.0,0.05213559]
[1725980910505,0.006,56864.0,56863.0,0.001]
[1725980911516,0.2956,56869.0,56862.0,0.087926]
[1725980911711,0.003,56863.0,56862.0,0.087926]
[1725980913613,0.01,56864.0,56863.0,0.001]
[1725980913922,0.01,56864.0,56863.0,0.088926]
[1725980914113,0.004,56864.0,56863.0,0.087926]
[1725980914312,0.096696,56883.0,56877.0,0.087904]
[1725980914313,0.087898,56882.0,56877.0,0.087904]
[1725980914509,0.087898,56882.0,56864.0,0.087923]
[1725980914510,0.087898,56881.0,56875.0,0.087906]
[1725980914715,0.087898,56881.0,56869.0,0.25]
[1725980915010,0.087898,56881.0,56875.0,0.087907]
[1725980915217,0.0879,56880.0,56875.0,0.087907]
[1725980915719,0.25,56877.0,56870.0,0.88]
[1725980916017,0.087912,56872.0,56869.0,0.087916]
[1725980916814,0.25,56873.0,56869.0,0.001]
[1725980917123,0.25,56877.0,56869.0,0.001]
[1725980917419,0.014,56878.0,56873.0,0.087909]
[1725980917717,0.087907,56876.0,56873.0,0.087909]
[1725980917914,0.25,56877.0,56869.0,0.01263156]
[1725980918115,0.087914,56871.0,56869.0,0.002]
[1725980918519,0.087914,56871.0,56869.0,0.001]
[1725980918918,0.17583,56870.0,56869.0,0.001]
[1725980919419,0.615435,56870.0,56869.0,0.001]
[1725980919620,0.087921,56866.0,56865.0,0.01031643]
[1725980919820,0.337921,56866.0,56862.0,0.087927]
[1725980920021,0.337921,56866.0,56863.0,0.087926]
[1725980920631,0.1408,56877.0,56861.0,0.89067253]
[1725980920632,0.344916,56870.0,56861.0,0.89067253]
[1725980920820,0.344916,56870.0,56869.0,0.001]
[1725980921124,0.432832,56870.0,56869.0,0.001]
[1725980921316,0.087926,56863.0,56850.0,0.047]
[1725980921511,0.087926,56864.0,56850.0,0.09913559]
[1725980921713,0.087928,56862.0,56861.0,0.087929]
[1725980922120,0.25,56865.0,56864.0,0.087924]
[1725980922318,0.001,56866.0,56865.0,0.087923]
[1725980923118,0.103915,56870.0,56869.0,0.001]
[1725980923318,0.353915,56870.0,56869.0,0.001]
[1725980923923,0.008,56870.0,56869.0,0.088916]
[1725980924626,0.009,56870.0,56869.0,0.001]
[1725980924827,0.009,56870.0,56869.0,0.088916]
[1725980925323,0.337894,56884.0,56869.0,1.37852]
[1725980925324,0.3218,56884.0,56869.0,1.37852]
[1725980925528,0.00240001,56889.0,56888.0,0.087887]
[1725980925730,0.1221887,56910.0,56888.0,0.087887]
[1725980925731,0.10473317,56907.0,56888.0,0.25]
[1725980925927,0.08788,56893.0,56885.0,0.05213559]
[1725980926118,0.087882,56892.0,56886.0,0.88]
[1725980926430,0.25,56890.0,56886.0,0.88]
[1725980926620,0.25,56890.0,56877.0,0.05213559]
[1725980926822,0.087896,56882.0,56874.0,0.05213559]
[1725980927023,0.25,56880.0,56873.0,0.05213559]
[1725980927218,0.25,56880.0,56874.0,0.88]
[1725980927419,0.25,56884.0,56874.0,0.93213559]
[1725980927625,0.087895,56883.0,56874.0,0.93213559]
[1725980927824,0.087895,56883.0,56874.0,1.02004459]
[1725980928822,0.087895,56883.0,56874.0,1.02304459]
[1725980929425,0.087895,56883.0,56875.0,0.05213559]
[1725980929625,0.087895,56883.0,56874.0,0.970909]
[1725980930020,0.25,56884.0,56874.0,0.970909]
[1725980930220,0.25,56884.0,56874.0,0.971909]
[1725980930422,0.0879,56880.0,56874.0,0.968909]
[1725980930622,0.0879,56880.0,56874.0,0.969909]
[1725980931027,0.0879,56880.0,56874.0,0.968909]
[1725980931230,0.0879,56880.0,56874.0,0.969909]
[1725980931530,0.087891,56886.0,56877.0,0.087903]
[1725980931835,0.25,56883.0,56877.0,0.087903]
[1725980932733,0.087897,56882.0,56877.0,0.087903]
[1725980933027,0.25,56888.0,56874.0,0.882]
[1725980933219,0.136286,56889.0,56874.0,0.882]
[1725980933422,0.002,56883.0,56882.0,0.087896]
[1725980935134,0.008,56883.0,56882.0,0.088896]
[1725980935728,0.008,56883.0,56882.0,0.001]
[1725980935927,0.016,56883.0,56882.0,0.002]
[1725980936329,0.353895,56883.0,56882.0,0.002]
[1725980936533,0.103895,56883.0,56882.0,0.002]
[1725980936934,0.016,56883.0,56882.0,0.01261173]
[1725980937126,0.016,56883.0,56882.0,0.002]
[1725980937326,0.016,56883.0,56882.0,0.089896]
[1725980938439,0.103895,56883.0,56882.0,0.002]
[1725980939537,0.016,56883.0,56882.0,0.10048253]
[1725980939740,0.016,56883.0,56882.0,0.089896]
[1725980940130,0.016,56883.0,56882.0,0.002]
[1725980940436,0.103895,56883.0,56882.0,0.002]
[1725980940839,0.016,56883.0,56882.0,0.002]
[1725980941038,0.016,56883.0,56882.0,0.089896]
[1725980941641,0.103895,56883.0,56882.0,0.002]
[1725980941841,0.19179,56883.0,56882.0,0.002]
[1725980942038,0.087913,56872.0,56869.0,0.087916]
[1725980942542,0.087901,56879.0,56871.0,0.88]
[1725980942743,0.087903,56878.0,56871.0,0.88]
[1725980943035,0.087898,56881.0,56871.0,0.88]
[1725980943235,0.087907,56876.0,56871.0,0.967912]
[1725980943435,0.087907,56876.0,56871.0,0.88]
[1725980943636,0.001,56872.0,56871.0,0.967913]
[1725980944444,0.087898,56881.0,56878.0,0.087902]
[1725980944738,0.25,56890.0,56875.0,0.25]
[1725980944942,0.183282,56892.0,56879.0,0.25]
[1725980944943,0.087888,56888.0,56879.0,0.25]
[1725980945240,0.10511046,56889.0,56884.0,0.25]
[1725980945435,0.10511046,56889.0,56888.0,0.337887]
[1725980946134,0.10511046,56889.0,56888.0,1.217887]
[1725980946639,0.11911046,56889.0,56888.0,1.22918766]
[1725980947143,0.13311046,56889.0,56888.0,1.23018766]
[1725980947442,0.02721046,56889.0,56888.0,2.44543466]
[1725980947640,0.12262887,56895.0,56894.0,0.087878]
[1725980947844,0.12262887,56895.0,56894.0,0.337878]
[1725980948045,0.12262887,56895.0,56894.0,0.865158]
[1725980948237,0.12262887,56895.0,56894.0,0.337878]
[1725980948637,0.12262887,56895.0,56890.0,0.337883]
[1725980948938,0.087878,56894.0,56890.0,0.25]
[1725980949240,0.003,56889.0,56888.0,0.89230066]
[1725980949443,0.090886,56889.0,56888.0,0.01230066]
[1725980949645,0.003,56889.0,56888.0,0.01230066]
[1725980949837,0.003,56889.0,56888.0,0.01130066]
[1725980950035,0.13462887,56895.0,56888.0,0.01030066]
[1725980950233,0.003,56894.0,56890.0,0.001]
[1725980950530,0.087882,56891.0,56890.0,0.001]
[1725980950935,0.087889,56887.0,56883.0,0.01061363]
[1725980951142,0.087889,56887.0,56880.0,0.967899]
[1725980951641,0.087589,56887.0,56880.0,0.97827379]
[1725980952042,0.002,56889.0,56880.0,0.89037479]
[1725980952345,0.087898,56881.0,56880.0,0.01137479]
[1725980953246,0.0491,56891.0,56880.0,0.01137479]
[1725980953541,0.087898,56881.0,56880.0,0.01137479]
[1725980953748,0.087898,56881.0,56880.0,0.001]
[1725980954535,0.087892,56885.0,56880.0,0.001]
[1725980954849,0.25,56886.0,56880.0,0.001]
[1725980955037,0.087898,56881.0,56880.0,0.001]
[1725980955237,0.087899,56880.0,56879.0,0.0107055]
[1725980955449,0.087904,56877.0,56876.0,0.88]
[1725980955845,0.087904,56877.0,56867.0,0.05209379]
[1725980955846,0.25,56877.0,56867.0,0.05209379]
[1725980956141,0.0494,56879.0,56871.0,0.087913]
[1725980956337,0.087907,56876.0,56872.0,0.88]
[1725980956847,0.087907,56876.0,56872.0,0.087912]
[1725980957147,0.087918,56868.0,56867.0,0.01064251]
[1725980957345,0.337918,56868.0,56862.0,0.087926]
[1725980957539,0.0461,56875.0,56867.0,0.087918]
[1725980957540,0.087912,56872.0,56867.0,0.087918]
[1725980957743,0.06008926,56879.0,56867.0,0.25]
[1725980958045,0.087909,56874.0,56867.0,0.25]
[1725980958244,0.25,56878.0,56862.0,0.88]
[1725980958541,0.087925,56864.0,56862.0,0.88]
[1725980958748,0.25,56873.0,56862.0,0.89051914]
[1725980959048,0.087926,56863.0,56862.0,0.89051914]
[1725980959843,0.08792,56867.0,56862.0,0.89051914]
[1725980960151,0.087921,56866.0,56862.0,0.97844614]
[1725980960445,0.087918,56869.0,56862.0,0.89051914]
[1725980960644,0.087914,56871.0,56866.0,0.087921]
[1725980960849,0.087903,56878.0,56868.0,0.25]
[1725980961036,0.3693,56880.0,56871.0,0.087913]
[1725980961241,0.087909,56874.0,56868.0,0.087917]
[1725980961547,0.087909,56874.0,56866.0,0.05209379]
[1725980961746,0.0475,56880.0,56875.0,0.087906]
[1725980962250,0.3673,56890.0,56873.0,0.25]
[1725980962450,0.049,56888.0,56873.0,0.25]
[1725980962640,0.049,56888.0,56877.0,0.25]
[1725980962954,0.049,56888.0,56882.0,0.25]
[1725980963146,0.049,56888.0,56878.0,0.05209379]
[1725980963341,0.087881,56892.0,56887.0,0.087888]
[1725980964453,0.002,56888.0,56887.0,0.087888]
[1725980965847,0.002,56888.0,56882.0,0.001]
[1725980966355,0.002,56888.0,56887.0,0.001]
[1725980966751,0.087883,56891.0,56887.0,0.002]
[1725980967748,0.003,56888.0,56887.0,0.002]
[1725980968359,0.003,56888.0,56887.0,0.001]
[1725980968852,0.003,56888.0,56887.0,0.089889]
[1725980969861,0.003,56888.0,56887.0,0.339889]
[1725980970058,0.003,56888.0,56887.0,1.555138]
[1725980970261,0.0088,56909.0,56907.0,0.087857]
[1725980970461,0.25,56916.0,56899.0,0.08787]
[1725980970462,0.00248001,56908.0,56899.0,0.25]
[1725980970754,0.09809242,56913.0,56909.0,0.087855]
[1725980970946,0.432539,56920.0,56900.0,0.973]
[1725980970947,0.10497621,56919.0,56900.0,0.973]
[1725980971154,0.08785,56913.0,56907.0,0.087857]
[1725980971348,0.087845,56916.0,56910.0,0.087853]
[1725980971558,0.3447,56920.0,56910.0,0.087853]
[1725980971559,0.087846,56915.0,56910.0,0.087853]
[1725980972354,0.0485,56920.0,56910.0,0.25]
[1725980972747,0.0485,56920.0,56917.0,0.087841]
[1725980972945,0.136338,56920.0,56914.0,0.087847]
[1725980973448,0.136338,56920.0,56910.0,0.25]
[1725980973449,0.0485,56920.0,56910.0,0.25]
[1725980973649,0.0485,56920.0,56917.0,0.087841]
[1725980973948,0.00236,56931.0,56925.0,0.08783]
[1725980974153,0.0468,56931.0,56925.0,0.08783]
[1725980974653,0.0468,56931.0,56920.0,0.337837]
[1725980974654,0.134621,56931.0,56920.0,0.337837]
[1725980974854,0.0468,56931.0,56920.0,0.25]
[1725980975059,0.0494,56942.0,56930.0,0.087821]
[1725980975060,0.087809,56939.0,56930.0,0.087821]
[1725980975360,0.0491,56941.0,56933.0,0.087817]
[1725980975361,0.136906,56941.0,56933.0,0.087817]
[1725980975556,0.0491,56941.0,56929.0,0.25]
[1725980975758,0.087811,56937.0,56929.0,0.337824]
[1725980975950,0.0491,56941.0,56925.0,0.001]
[1725980975951,0.087815,56936.0,56925.0,0.001]
[1725980976151,0.0491,56941.0,56930.0,0.88]
[1725980976657,0.136906,56941.0,56930.0,0.881]
[1725980976852,0.3707,56949.0,56930.0,0.881]
[1725980976853,0.3218,56949.0,56942.0,0.087804]
[1725980977052,0.2991,56952.0,56938.0,0.25]
[1725980977259,0.087798,56946.0,56938.0,0.25]
[1725980977459,0.136889,56952.0,56938.0,0.25]
[1725980977764,0.0491,56952.0,56942.0,0.087803]
[1725980978369,0.0491,56952.0,56943.0,0.25]
[1725980978561,0.3218,56960.0,56947.0,0.25]
[1725980978760,0.087784,56955.0,56947.0,0.25]
[1725980979067,0.087784,56955.0,56938.0,0.001]
[1725980979068,0.25,56957.0,56944.0,0.0878]
[1725980979252,0.08779,56951.0,56943.0,0.25]
[1725980979452,0.25,56957.0,56943.0,0.25]
[1725980979763,0.087789,56952.0,56943.0,0.25]
[1725980980064,0.087783,56956.0,56947.0,0.338796]
[1725980980263,0.087784,56955.0,56947.0,0.338796]
[1725980980566,0.087789,56952.0,56947.0,0.001]
[1725980980759,0.175579,56952.0,56947.0,0.01140394]
[1725980980955,0.087795,56948.0,56947.0,0.01140394]
[1725980981557,0.087795,56948.0,56947.0,0.89040394]
[1725980981760,0.087795,56948.0,56947.0,0.01040394]
[1725980981957,0.087801,56944.0,56943.0,0.002]
[1725980982161,0.087801,56944.0,56943.0,0.0113043]
[1725980982464,0.087801,56944.0,56943.0,0.001]
[1725980983357,0.087783,56956.0,56943.0,0.001]
[1725980983758,0.087783,56956.0,56926.0,0.9768]
[1725980983759,0.25,56953.0,56947.0,0.001]
[1725980983962,0.087795,56948.0,56947.0,0.001]
[1725980984265,0.087788,56953.0,56947.0,0.001]
[1725980984761,0.087784,56955.0,56943.0,0.001]
[1725980984966,0.087773,56963.0,56955.0,0.087783]
[1725980985258,0.087773,56963.0,56951.0,0.25]
[1725980985259,0.08777,56964.0,56951.0,0.25]
[1725980985461,0.08777,56964.0,56954.0,0.087785]
[1725980985654,0.087772,56963.0,56955.0,0.087783]
[1725980985852,0.087775,56961.0,56955.0,0.087783]
[1725980986253,0.087776,56960.0,56955.0,0.087783]
[1725980986662,0.087776,56960.0,56955.0,0.088783]
[1725980986859,0.087776,56960.0,56955.0,0.001]
[1725980987055,0.087778,56959.0,56955.0,0.001]
[1725980987259,0.25,56967.0,56955.0,0.001]
[1725980987666,0.25,56967.0,56956.0,0.88]
[1725980987964,0.087774,56962.0,56956.0,0.88]
[1725980988355,0.087768,56966.0,56956.0,1.13]
[1725980988558,0.087768,56966.0,56960.0,0.337775]
[1725980988757,0.087768,56966.0,56956.0,0.967782]
[1725980988956,0.087773,56962.0,56957.0,0.08778]
[1725980989161,0.087768,56966.0,56957.0,0.08778]
[1725980989363,0.087768,56966.0,56959.0,0.087777]
[1725980989663,0.087768,56966.0,56956.0,0.881]
[1725980989865,0.087773,56962.0,56956.0,0.88]
[1725980990168,0.087778,56959.0,56956.0,0.881]
[1725980990369,0.087768,56966.0,56956.0,0.881]
[1725980990370,0.08778,56958.0,56956.0,0.882]
[1725980990563,0.08778,56958.0,56956.0,0.002]
[1725980991862,0.08778,56958.0,56956.0,0.001]
[1725980992065,0.087768,56966.0,56956.0,0.001]
[1725980992265,0.0477,56968.0,56962.0,0.25]
[1725980992266,0.087769,56965.0,56962.0,0.25]
[1725980992460,0.0477,56968.0,56962.0,0.25]
[1725980992662,0.0477,56968.0,56962.0,0.337772]
[1725980992663,0.135465,56968.0,56962.0,0.337772]
[1725980992874,0.087768,56966.0,56962.0,0.25]
[1725980993067,0.09821095,56973.0,56963.0,0.087771]
[1725980993269,0.087764,56968.0,56963.0,0.087771]
[1725980993464,0.087767,56966.0,56962.0,0.26029162]
[1725980994058,0.087767,56966.0,56962.0,0.26129162]
[1725980994561,0.087767,56966.0,56963.0,0.001]
[1725980994762,0.08777,56964.0,56963.0,0.001]
[1725980995363,0.08777,56964.0,56962.0,0.01229162]
[1725980995571,0.087771,56963.0,56962.0,0.01229162]
[1725980996958,0.087771,56963.0,56962.0,0.01129162]
[1725980997971,0.08776,56971.0,56962.0,0.01129162]
[1725980997972,0.087767,56966.0,56962.0,0.01129162]
[1725980998268,0.33216502,56974.0,56965.0,0.25]
[1725980998472,0.33216502,56974.0,56962.0,0.01229162]
[1725980998473,0.3218,56974.0,56970.0,0.25]
[1725980998662,0.53896,56982.0,56970.0,0.25]
[1725980998663,0.00236,56982.0,56970.0,0.25]
[1725980998864,0.135542,56983.0,56978.0,0.337748]
[1725980999164,0.3218,56987.0,56982.0,0.25]
[1725980999363,0.3218,56987.0,56979.0,0.88]
[1725980999364,0.0952,56992.0,56979.0,0.88]
[1725981000063,0.25,56989.0,56979.0,0.88]
[1725981000371,0.337732,56989.0,56979.0,0.88]
[1725981000567,0.087728,56991.0,56985.0,0.087737]
[1725981000768,0.0472,56992.0,56979.0,0.88]
[1725981000975,0.0472,56992.0,56982.0,0.25]
[1725981001275,0.0472,56992.0,56986.0,0.25]
[1725981001575,0.0472,56992.0,56979.0,0.881]
[1725981001576,0.3218,56999.0,56990.0,0.25]
[1725981001771,0.087717,56999.0,56991.0,0.087728]
[1725981002070,0.087718,56998.0,56991.0,0.087728]
[1725981002276,0.0472,57003.0,56991.0,0.087728]
[1725981002277,0.08772,56997.0,56991.0,0.087728]
[1725981002580,0.13491,57003.0,56986.0,0.337734]
[1725981002761,0.13491,57003.0,56981.0,0.05209379]
[1725981002762,0.25,56996.0,56983.0,0.08774]
[1725981002961,0.087728,56991.0,56984.0,0.087738]
[1725981003481,0.25,56996.0,56982.0,0.087741]
[1725981003774,0.087731,56990.0,56982.0,0.087741]
[1725981004071,0.087728,56991.0,56990.0,0.001]
[1725981004773,0.25,56996.0,56980.0,0.05913422]
[1725981004774,0.087731,56989.0,56980.0,0.01053422]
[1725981004965,0.087715,57000.0,56985.0,0.25]
[1725981005162,0.0472,57003.0,56988.0,0.087733]
[1725981005374,0.087725,56994.0,56988.0,0.087733]
[1725981005595,0.087717,56999.0,56989.0,0.25]
[1725981005776,0.05742764,57003.0,56989.0,0.25]
[1725981005966,0.087722,56996.0,56989.0,0.25]
[1725981006168,0.087722,56995.0,56989.0,0.25]
[1725981006367,0.05742764,57003.0,56989.0,0.25]
[1725981006368,0.087718,56998.0,56989.0,0.25]
[1725981006569,0.137098,57011.0,56994.0,0.25]
[1725981006771,0.0451,57012.0,57007.0,0.24925519]
[1725981007079,0.087706,57006.0,57001.0,0.25]
[1725981007465,0.0451,57012.0,57005.0,0.25]
[1725981007765,0.0451,57012.0,56991.0,0.1427]
[1725981007766,0.0479,57025.0,57010.0,0.25]
[1725981007966,0.0088,57023.0,57021.0,0.087682]
[1725981008173,0.0088,57023.0,57022.0,0.337681]
[1725981008468,0.048,57032.0,57022.0,0.25]
[1725981008671,0.087667,57031.0,57022.0,0.25]
[1725981008870,0.048,57032.0,57030.0,0.25]
[1725981009066,0.087656,57038.0,57030.0,0.25]
[1725981009266,0.25,57047.0,57030.0,0.25]
[1725981009476,0.087658,57037.0,57025.0,0.25]
[1725981009672,0.25,57038.0,57023.0,0.88]
[1725981009872,0.087665,57032.0,57023.0,0.88]
[1725981010172,0.048,57036.0,57023.0,0.89070548]
[1725981010477,0.048,57036.0,57030.0,0.25]
[1725981010664,0.087645,57046.0,57030.0,0.25]
[1725981010868,0.25,57042.0,57026.0,0.25]
[1725981011175,0.25,57042.0,57023.0,0.89170548]
[1725981011372,0.25,57042.0,57025.0,0.337675]
[1725981011570,0.25,57042.0,57025.0,0.25]
[1725981011777,0.25,57042.0,57023.0,0.89170548]
[1725981011974,0.135644,57046.0,57030.0,0.001]
[1725981011975,0.087667,57031.0,57030.0,0.001]
[1725981012377,0.087667,57031.0,57030.0,0.002]
[1725981012378,1.213707,57031.0,57030.0,0.002]
[1725981012876,0.613707,57031.0,57030.0,0.002]
[1725981013070,1.301374,57031.0,57030.0,0.002]
[1725981013272,0.613707,57031.0,57030.0,0.002]
[1725981014081,0.087662,57034.0,57026.0,0.25]
[1725981014272,0.3218,57045.0,57032.0,0.087665]
[1725981014579,0.25,57038.0,57025.0,0.001]
[1725981014881,0.25,57038.0,57021.0,0.25]
[1725981014882,0.25,57038.0,57030.0,0.002]
[1725981015182,0.087667,57031.0,57030.0,0.002]
[1725981015375,0.087667,57031.0,57030.0,0.001]
[1725981015980,0.25,57043.0,57030.0,0.001]
[1725981016276,0.25,57039.0,57030.0,0.001]
[1725981016678,0.087667,57031.0,57030.0,0.001]
[1725981017071,1.213707,57031.0,57030.0,0.001]
[1725981017272,0.087676,57026.0,57025.0,0.001]
[1725981018079,0.0463,57030.0,57016.0,0.26036616]
[1725981018276,0.337688,57017.0,57016.0,0.01036616]
[1725981018576,0.0463,57030.0,57013.0,0.087693]
[1725981018577,0.087684,57020.0,57013.0,0.087693]
[1725981018777,0.087685,57019.0,57013.0,0.087693]
[1725981018978,0.087688,57018.0,57011.0,0.087697]
[1725981019280,0.25,57026.0,57013.0,0.25]